bitfinex/quotes_ETHUSD_20250425
["timestamp","ask_amount","ask_price","bid_price","bid_amount"]
[1745607910771,0.51901406,1798.6,1798.5,0.65692995]
[1745607910977,0.51901406,1798.6,1798.5,1.46852995]
[1745607911544,5.55872666,1799.0,1798.5,1.46852995]
[1745607911751,5.55872666,1799.0,1798.7,0.65692995]
[1745607911956,0.51903162,1798.9,1798.7,0.65692995]
[1745607912455,5.55872666,1799.0,1798.7,0.65692995]
[1745607912853,5.55917669,1798.9,1798.7,0.65692995]
[1745607914095,5.55926173,1798.8,1798.7,0.65692995]
[1745607914751,6.74932879,1799.0,1798.7,0.65692995]
[1745607914947,6.74932879,1799.0,1798.5,1.46852995]
[1745607914948,5.55962909,1798.7,1798.5,1.46852995]
[1745607915376,5.55926173,1798.8,1798.5,1.46852995]
[1745607915781,11.1188021,1798.8,1798.5,1.46852995]
[1745607915981,5.55926173,1798.8,1798.5,1.46852995]
[1745607916281,5.55957474,1798.7,1798.4,4.867]
[1745607916480,5.56018904,1798.5,1798.4,4.867]
[1745607916688,5.56073176,1798.4,1798.1,6.36612995]
[1745607916994,5.56111667,1798.2,1798.1,0.05]
[1745607917489,6.08046687,1798.2,1798.1,0.05]
[1745607919215,0.5193502,1798.2,1798.1,0.05]
[1745607919427,6.08046687,1798.2,1798.1,0.05]
[1745607920307,0.5193502,1798.2,1798.1,0.05]
[1745607920701,6.08046687,1798.2,1798.1,0.05]
[1745607920877,0.5193502,1798.2,1798.1,0.05]
[1745607922109,5.56111667,1798.2,1798.1,0.05]
[1745607923277,6.08034813,1798.2,1798.1,0.05]
[1745607923672,8.02008252,1798.2,1798.1,0.05]
[1745607924078,8.33163123,1798.2,1798.1,0.05]
[1745607925124,8.02008252,1798.2,1798.1,0.05]
[1745607926882,1.68336585,1798.2,1798.1,0.05]
[1745607927081,0.51923146,1798.2,1798.1,0.70692995]
[1745607927776,17.23187513,1798.3,1798.1,0.70692995]
[1745607927981,11.67082132,1798.3,1798.1,0.70692995]
[1745607928187,6.11,1798.3,1798.1,0.70692995]
[1745607928710,11.67092149,1798.3,1798.1,0.70692995]
[1745607929011,11.67083922,1798.3,1798.1,0.70692995]
[1745607931518,6.11,1798.3,1798.1,0.70692995]
[1745607931695,11.67091852,1798.3,1798.1,0.70692995]
[1745607932016,6.11,1798.3,1798.1,0.70692995]
[1745607932314,5.56084215,1798.3,1798.1,0.70692995]
[1745607932721,5.56071443,1798.4,1798.1,0.70692995]
[1745607932884,0.51893553,1798.3,1798.1,0.70692995]
[1745607933413,11.12147501,1798.4,1798.1,0.70692995]
[1745607933612,5.56094285,1798.3,1798.1,0.70692995]
[1745607934420,5.56111667,1798.2,1798.1,0.70692995]
[1745607935321,5.56094285,1798.3,1798.1,0.70692995]
[1745607936015,11.12203223,1798.3,1798.1,0.70692995]
[1745607936219,5.56111667,1798.2,1798.1,0.70692995]
[1745607936416,5.56094285,1798.3,1798.1,0.70692995]
[1745607936721,11.12202764,1798.3,1798.1,0.70692995]
[1745607936921,5.56094285,1798.3,1798.1,0.70692995]
[1745607937711,5.56111667,1798.2,1798.1,0.70692995]
[1745607938118,5.56094285,1798.3,1798.1,0.70692995]
[1745607938290,5.56111667,1798.2,1798.1,0.70692995]
[1745607938496,5.56094285,1798.3,1798.1,0.70692995]
[1745607939311,11.12201261,1798.3,1798.1,0.70692995]
[1745607939510,5.56111667,1798.2,1798.1,0.70692995]
[1745607939842,5.56094285,1798.3,1798.1,0.70692995]
[1745607940234,5.56063644,1798.4,1798.1,0.70692995]
[1745607940396,0.51900549,1798.3,1798.1,0.70692995]
[1745607941433,5.56083984,1798.3,1798.1,0.70692995]
[1745607942739,5.56111667,1798.2,1798.1,0.05]
[1745607943097,6.83731301,1798.2,1798.1,0.05]
[1745607943410,7.1490387,1798.2,1798.1,0.05]
[1745607953222,6.3921387,1798.2,1798.1,0.05]
[1745607961773,10.2037387,1798.2,1798.1,0.05]
[1745607962054,11.89141175,1798.2,1798.1,0.05]
[1745607963622,8.89141175,1798.2,1798.1,0.05]
[1745607975263,18.00141175,1798.2,1798.1,0.05]
[1745607976288,5.56280206,1797.7,1797.3,1.43552995]
[1745607976578,5.56359185,1797.4,1797.3,0.7786]
[1745607977149,6.08288819,1797.4,1797.3,0.7786]
[1745607977445,5.5639014,1797.3,1797.2,5.5966]
[1745607977781,5.5639014,1797.3,1797.2,0.7786]
[1745607977978,6.08319774,1797.3,1797.2,0.7786]
[1745607978665,6.08319774,1797.3,1797.1,1.46842995]
[1745607978899,0.51929634,1797.3,1797.1,1.46842995]
[1745607979099,0.51929634,1797.3,1797.1,0.70692995]
[1745607979254,11.12624163,1797.6,1797.2,0.7724]
[1745607979453,17.23580711,1797.7,1797.5,0.65692995]
[1745607979660,6.08257578,1797.6,1797.5,0.7724]
[1745607979884,0.51960293,1797.6,1797.5,0.7724]
[1745607980494,6.08257578,1797.6,1797.5,0.7724]
[1745607982094,0.51960293,1797.6,1797.5,0.7724]
[1745607982272,6.08257578,1797.6,1797.5,0.7724]
[1745607983491,0.51960293,1797.6,1797.5,1.42932995]
[1745607983691,5.56268491,1797.7,1797.5,1.42932995]
[1745607984091,5.5625742,1797.8,1797.5,1.42932995]
[1745607984571,0.51929562,1797.7,1797.5,1.42932995]
[1745607984895,5.56269028,1797.7,1797.5,1.42932995]
[1745607985105,5.56315874,1797.6,1797.4,0.7705]
[1745607985263,6.67521673,1797.7,1797.4,0.7705]
[1745607985695,0.51934391,1797.6,1797.4,0.7705]
[1745607985858,0.51934391,1797.6,1797.5,0.65692995]
[1745607986483,5.56249316,1797.8,1797.5,0.65692995]
[1745607986983,0.51936236,1797.7,1797.5,0.65692995]
[1745607987411,11.12510663,1797.8,1797.5,0.65692995]
[1745607987605,5.56287289,1797.7,1797.4,0.7705]
[1745607987793,5.56327752,1797.6,1797.4,0.7705]
[1745607988289,0.5194516,1797.5,1797.4,0.7705]
[1745607989899,0.5194516,1797.5,1797.3,0.65692995]
[1745607990094,6.08293698,1797.5,1797.2,5.6165]
[1745607990295,5.5639014,1797.3,1797.2,5.6165]
[1745607990512,5.5639014,1797.3,1797.2,4.819]
[1745607990710,5.56421099,1797.2,1797.1,0.05]
[1745607990922,6.34301099,1797.2,1797.1,0.05]
[1745607991512,6.86255905,1797.2,1797.1,0.05]
[1745607991719,8.1052051,1797.2,1797.1,0.05]
[1745607993241,7.3264051,1797.2,1797.1,0.05]
[1745607995523,1.76219411,1797.2,1797.1,0.05]
[1745607995726,0.51954806,1797.2,1797.1,0.05]
[1745607996604,0.51954806,1797.3,1797.1,0.05]
[1745607997221,11.67377612,1797.4,1797.1,0.05]
[1745607997430,11.67378274,1797.4,1797.1,0.05]
[1745607997725,17.23761466,1797.4,1797.1,0.05]
[1745607997928,7.28769798,1797.3,1797.1,0.05]
[1745607999425,1.72376147,1797.3,1797.1,0.05]
[1745608000036,11.12765016,1797.4,1797.1,0.05]
[1745608000237,11.12761256,1797.4,1797.1,0.05]
[1745608000548,5.56378274,1797.4,1797.1,0.05]
[1745608000694,0.6082937,1797.5,1797.3,0.808]
[1745608000895,5.56285743,1797.7,1797.4,0.65692995]
[1745608001509,0.51909849,1797.6,1797.4,0.65692995]
[1745608001911,0.51909849,1797.5,1797.4,0.65692995]
[1745608003145,5.56301815,1797.6,1797.4,0.65692995]
[1745608003346,1.03870766,1797.6,1797.4,0.65692995]
[1745608003543,5.56285743,1797.7,1797.4,0.65692995]
[1745608004038,0.51952625,1797.6,1797.4,0.65692995]
[1745608004601,0.51952625,1797.5,1797.4,0.65692995]
[1745608006829,6.08280858,1797.5,1797.4,0.65692995]
[1745608007031,0.51952625,1797.5,1797.4,0.65692995]
[1745608009346,6.08283547,1797.5,1797.3,0.808]
[1745608009505,5.56330922,1797.5,1797.3,0.808]
[1745608009700,5.56330922,1797.5,1797.1,4.868]
[1745608009701,1.11263156,1797.5,1797.1,6.29312995]
[1745608009930,6.08360166,1797.4,1797.1,6.29312995]
[1745608010299,5.56382703,1797.4,1797.1,6.29312995]
[1745608011245,5.56341002,1797.5,1797.1,6.29312995]
[1745608011605,6.08346979,1797.4,1797.1,6.29312995]
[1745608012207,0.51979308,1797.3,1797.1,6.29312995]
[1745608012408,5.56421099,1797.2,1797.1,4.868]
[1745608012799,5.56452061,1797.1,1797.0,0.7682]
[1745608013046,0.8279,1796.7,1796.2,0.7682]
[1745608013255,5.56680967,1796.4,1796.2,0.7682]
[1745608014641,5.56655422,1796.5,1796.2,0.7682]
[1745608015146,5.56655422,1796.5,1796.2,1.42512995]
[1745608015442,5.56655422,1796.5,1796.2,0.7682]
[1745608015844,5.56671153,1796.4,1796.2,0.7682]
[1745608016053,5.56655422,1796.5,1796.2,0.7682]
[1745608016253,6.72243752,1796.5,1796.2,0.7682]
[1745608016456,6.72243635,1796.5,1796.2,0.7682]
[1745608018553,1.1558833,1796.5,1796.2,0.7682]
[1745608019264,6.72227181,1796.5,1796.2,0.7682]
[1745608019757,1.1558833,1796.5,1796.2,0.7682]
[1745608019954,17.32187223,1796.7,1796.2,1.42512995]
[1745608020134,6.11,1796.7,1796.4,0.65692995]
[1745608020336,10.38419614,1796.9,1796.5,0.7947]
[1745608020927,5.5654535,1796.8,1796.5,0.7947]
[1745608021122,10.38419614,1796.9,1796.5,0.7947]
[1745608021329,15.94959028,1796.9,1796.5,0.7947]
[1745608021537,10.38419614,1796.9,1796.5,0.7947]
[1745608022355,5.56566424,1796.8,1796.5,0.7947]
[1745608022560,5.56604475,1796.7,1796.3,0.7719]
[1745608022736,5.56604475,1796.7,1796.2,0.65692995]
[1745608022737,5.5666239,1796.5,1796.1,5.6409]
[1745608022938,5.56642717,1796.5,1796.1,5.6409]
[1745608023449,5.56623981,1796.6,1796.1,5.6409]
[1745608023653,5.56623981,1796.6,1796.2,0.65692995]
[1745608024565,5.56654923,1796.5,1796.2,0.65692995]
[1745608024767,5.56679381,1796.4,1796.1,0.8219]
[1745608025570,11.13371451,1796.4,1796.1,0.8219]
[1745608025742,6.32355138,1796.5,1796.1,0.8219]
[1745608025947,6.19923564,1796.4,1796.1,0.8219]
[1745608029267,5.56708904,1796.3,1796.1,0.05]
[1745608029784,6.1992173,1796.4,1796.1,0.05]
[1745608030336,5.56686216,1796.4,1796.1,0.05]
[1745608031437,5.56686216,1796.4,1796.2,0.775]
[1745608032770,5.56686216,1796.4,1796.1,0.05]
[1745608032771,5.56713912,1796.3,1796.1,0.8027]
[1745608033571,5.56730876,1796.2,1796.1,0.05]
[1745608033756,6.75686355,1796.2,1796.1,0.05]
[1745608034880,7.69925567,1796.2,1796.1,0.05]
[1745608035969,8.50275567,1796.2,1796.1,0.05]
[1745608036671,8.07763757,1796.2,1796.1,0.05]
[1745608038154,8.50438163,1796.2,1796.1,0.05]
[1745608040780,8.81561037,1796.2,1796.1,0.05]
[1745608041401,14.92561037,1796.2,1796.1,0.05]
[1745608045891,17.92561037,1796.2,1796.1,0.05]
[1745608046578,17.92561037,1796.2,1795.4,0.8178]
[1745608046579,5.56947925,1795.5,1795.4,0.8178]
[1745608046963,0.51727402,1795.5,1795.4,0.8178]
[1745608048909,0.51727402,1795.5,1795.4,1.47472995]
[1745608049073,5.56896647,1795.7,1795.4,1.47472995]
[1745608049394,5.56933103,1795.6,1795.4,1.47472995]
[1745608049559,5.56933103,1795.6,1795.4,0.8178]
[1745608049753,5.56947925,1795.5,1795.4,0.8178]
[1745608050001,5.56947925,1795.5,1795.2,1.46612995]
[1745608050253,5.56947925,1795.5,1795.2,0.8092]
[1745608050362,5.56987571,1795.4,1795.2,0.8092]
[1745608050997,5.56947925,1795.5,1795.2,0.8092]
[1745608051159,0.51901912,1795.4,1795.2,0.8092]
[1745608051569,6.08886156,1795.4,1795.2,0.8092]
[1745608051769,5.56984244,1795.4,1795.2,0.8092]
[1745608052900,6.31723038,1795.5,1795.2,0.8092]
[1745608053202,0.5189969,1795.4,1795.2,0.8092]
[1745608053495,6.31723038,1795.5,1795.2,0.8092]
[1745608054058,5.56979521,1795.4,1795.2,0.8092]
[1745608055192,6.31723038,1795.5,1795.2,0.8092]
[1745608055369,0.51898301,1795.4,1795.2,0.8092]
[1745608055778,11.88695852,1795.5,1795.2,0.8092]
[1745608056187,6.31723038,1795.5,1795.2,0.8092]
[1745608056576,11.88698524,1795.5,1795.2,0.8092]
[1745608056781,5.5700997,1795.3,1795.1,0.8534]
[1745608057562,0.51895251,1795.2,1795.1,0.8534]
[1745608058094,6.11,1795.5,1795.2,0.8083]
[1745608058405,6.11,1795.5,1795.3,0.65692995]
[1745608058585,5.56867627,1795.8,1795.4,0.8083]
[1745608058990,6.0879583,1795.7,1795.4,0.8083]
[1745608059171,0.51907875,1795.7,1795.4,0.8083]
[1745608059868,0.51919367,1795.6,1795.4,0.8083]
[1745608060397,0.51919367,1795.5,1795.4,0.8083]
[1745608080705,5.56987281,1795.4,1795.2,0.8036]
[1745608080922,6.08888423,1795.5,1795.2,0.8036]
[1745608081211,0.51919367,1795.3,1795.2,0.8036]
[1745608082111,0.31265043,1795.5,1795.2,0.85929898]
[1745608082267,0.31265043,1795.5,1795.4,0.65692995]
[1745608082474,0.31265043,1795.5,1795.4,1.41582995]
[1745608083282,5.56858324,1795.8,1795.4,1.41582995]
[1745608084223,0.52097188,1795.7,1795.4,1.41582995]
[1745608084598,5.56858324,1795.8,1795.4,1.41582995]
[1745608085288,17.24688071,1795.9,1795.4,1.41582995]
[1745608085486,0.52095132,1795.8,1795.4,1.41582995]
[1745608085686,0.52095132,1795.8,1795.6,0.65692995]
[1745608086026,0.52095132,1795.7,1795.6,1.45432995]
[1745608087124,5.56838135,1795.9,1795.6,1.45432995]
[1745608087645,0.52091966,1795.8,1795.7,6.32555894]
[1745608087921,0.52091966,1795.8,1795.7,9.98248889]
[1745608088299,0.52091966,1796.1,1796.0,0.7567]
[1745608088501,0.52091966,1796.1,1796.0,1.41362995]
[1745608088827,5.56566993,1796.8,1796.2,0.8207]
[1745608089027,6.20440692,1796.8,1796.5,0.8207]
[1745608089228,0.52034586,1796.7,1796.5,0.8207]
[1745608089442,6.08612089,1796.7,1796.4,1.47062995]
[1745608089742,5.56577503,1796.7,1796.4,1.47062995]
[1745608090094,6.20418914,1796.8,1796.4,1.47062995]
[1745608090416,5.56620433,1796.6,1796.1,0.65692995]
[1745608091339,5.56651073,1796.5,1796.1,0.65692995]
[1745608091547,5.56669497,1796.4,1796.1,0.65692995]
[1745608091692,0.8262,1796.4,1795.9,5.47292995]
[1745608091887,0.8262,1796.4,1795.8,1.41142995]
[1745608092087,5.56825359,1795.9,1795.5,5.47292995]
[1745608092292,5.56871646,1795.8,1795.5,5.47292995]
[1745608092729,5.56850092,1795.9,1795.5,5.47292995]
[1745608092931,11.1370411,1795.9,1795.5,5.47292995]
[1745608093236,6.76482503,1795.9,1795.5,5.47292995]
[1745608093545,6.76481245,1795.9,1795.5,5.47292995]
[1745608093893,1.19632411,1795.9,1795.5,5.47292995]
[1745608094128,5.56827124,1795.9,1795.5,5.47292995]
[1745608094427,6.39429438,1796.0,1795.5,5.47292995]
[1745608095129,5.56827829,1795.9,1795.5,5.47292995]
[1745608095368,5.56864447,1795.8,1795.5,5.47292995]
[1745608095643,5.56844006,1795.9,1795.5,5.47292995]
[1745608098009,5.56806854,1796.0,1795.7,0.65692995]
[1745608098620,11.13623706,1796.0,1795.7,0.65692995]
[1745608099027,5.56825283,1795.9,1795.7,0.65692995]
[1745608099954,5.56811435,1796.0,1795.7,0.65692995]
[1745608100177,7.29270537,1796.0,1795.7,0.65692995]
[1745608100547,12.86093275,1796.0,1795.7,0.65692995]
[1745608100843,5.56823957,1795.9,1795.7,0.65692995]
[1745608101049,5.56888112,1795.7,1795.5,5.47292995]
[1745608101216,5.56876828,1795.8,1795.5,5.47292995]
[1745608101420,5.56888927,1795.7,1795.5,5.47292995]
[1745608101659,5.56876828,1795.8,1795.5,5.47292995]
[1745608103256,6.76042086,1795.8,1795.5,5.47292995]
[1745608103557,5.56887552,1795.7,1795.5,5.47292995]
[1745608103771,6.7603171,1795.8,1795.5,5.47292995]
[1745608104067,6.76035693,1795.8,1795.5,5.47292995]
[1745608104227,5.56897172,1795.7,1795.5,5.47292995]
[1745608104422,1.72459102,1796.0,1795.5,5.47292995]
[1745608104627,11.67778049,1796.1,1795.9,0.65692995]
[1745608104860,11.13567699,1796.1,1795.9,0.65692995]
[1745608105026,5.56817193,1796.0,1795.7,1.47622995]
[1745608105860,5.56835338,1795.9,1795.7,0.65692995]
[1745608106038,6.32264879,1796.0,1795.7,0.65692995]
[1745608106236,5.56824633,1795.9,1795.7,0.65692995]
[1745608106430,5.56780322,1796.1,1795.7,0.65692995]
[1745608106631,5.56762094,1796.1,1795.8,0.8193]
[1745608107272,5.56795327,1796.0,1795.8,0.8193]
[1745608107457,5.56835295,1795.9,1795.6,0.8193]
[1745608107634,5.56814347,1796.0,1795.6,0.8193]
[1745608109175,12.46611936,1796.3,1795.9,0.8259]
[1745608109334,14.45747978,1796.3,1795.9,0.8259]
[1745608109536,0.51943019,1796.2,1795.9,0.8259]
[1745608110041,5.56737506,1796.2,1795.9,0.8259]
[1745608110434,14.45747978,1796.3,1795.9,0.8259]
[1745608110435,5.56774059,1796.1,1795.9,0.8259]
[1745608111162,6.68124552,1796.1,1795.9,0.8259]
[1745608112177,1.11350493,1796.1,1795.9,0.8259]
[1745608112331,5.56730876,1796.2,1795.9,0.8259]
[1745608112536,0.51967647,1796.1,1795.9,0.8259]
[1745608112836,5.56730876,1796.2,1795.9,0.8259]
[1745608113379,6.11,1796.3,1796.0,0.65692995]
[1745608113957,11.67703773,1796.3,1796.0,0.65692995]
[1745608114166,5.56732328,1796.2,1796.0,0.65692995]
[1745608114682,5.56703773,1796.3,1796.0,0.65692995]
[1745608115666,5.56681024,1796.4,1796.0,0.65692995]
[1745608116066,5.56702051,1796.3,1796.0,0.65692995]
[1745608117362,1.11338308,1796.3,1796.0,0.65692995]
[1745608117570,5.56761872,1796.1,1796.0,0.65692995]
[1745608117967,5.56730876,1796.2,1796.0,0.65692995]
[1745608119386,11.13486275,1796.2,1796.0,0.65692995]
[1745608119594,0.8149,1796.4,1795.8,1.46382995]
[1745608119595,5.56668893,1796.4,1795.8,1.46382995]
[1745608119756,5.56823876,1795.9,1795.6,6.27192995]
[1745608121384,0.52042499,1795.8,1795.6,6.27192995]
[1745608122063,6.36763291,1796.1,1795.6,6.27192995]
[1745608122263,5.56794167,1796.0,1795.9,0.65692995]
[1745608122469,6.088337,1796.0,1795.9,0.65692995]
[1745608123562,0.52039533,1796.0,1795.9,1.45982995]
[1745608123764,5.56767209,1796.1,1795.9,1.45982995]
[1745608124074,5.56753228,1796.2,1795.9,1.45982995]
[1745608124478,0.8199,1796.5,1796.1,0.65692995]
[1745608124665,5.56628975,1796.6,1796.4,0.65692995]
[1745608124991,6.0866356,1796.5,1796.4,0.65692995]
[1745608125177,0.52025653,1796.5,1796.4,0.65692995]
[1745608125681,6.0866356,1796.5,1796.4,0.65692995]
[1745608126379,0.52025653,1796.5,1796.4,0.65692995]
[1745608127191,6.0866356,1796.5,1796.4,0.65692995]
[1745608128053,6.0866356,1796.5,1796.2,1.43392995]
[1745608128387,5.56637907,1796.5,1796.2,1.43392995]
[1745608130552,5.56684144,1796.4,1796.2,1.43392995]
[1745608130761,6.08653654,1796.4,1796.2,1.43392995]
[1745608130989,5.56684144,1796.4,1796.2,1.43392995]
[1745608131191,5.56761872,1796.1,1795.8,1.45912995]
[1745608131359,5.56803955,1796.0,1795.8,0.65692995]
[1745608131759,5.56823876,1795.9,1795.7,0.65692995]
[1745608132930,5.56823876,1795.9,1795.6,4.814]
[1745608132931,5.56854883,1795.8,1795.6,4.814]
[1745608133105,5.56823876,1795.9,1795.6,4.814]
[1745608133406,11.13672025,1795.9,1795.6,4.814]
[1745608134084,5.56823876,1795.9,1795.6,4.814]
[1745608134490,5.56823876,1795.9,1795.7,0.65692995]
[1745608135892,11.13675614,1795.9,1795.7,0.65692995]
[1745608136068,12.86143175,1795.9,1795.7,0.65692995]
[1745608136270,7.29291437,1795.9,1795.7,0.65692995]
[1745608136689,5.56885894,1795.7,1795.6,4.814]
[1745608136891,5.56885894,1795.7,1795.5,0.65692995]
[1745608137114,5.56916907,1795.6,1795.5,0.65692995]
[1745608137289,5.5686656,1795.8,1795.5,0.65692995]
[1745608138811,8.04316625,1795.9,1795.5,0.65692995]
[1745608139015,11.67798228,1796.0,1795.7,0.65692995]
[1745608139314,11.67798228,1796.0,1795.9,0.65692995]
[1745608139315,1.79971393,1796.0,1795.9,0.65692995]
[1745608139616,11.13507878,1796.2,1795.9,0.65692995]
[1745608139917,0.51955072,1796.1,1795.9,0.65692995]
[1745608140318,0.51955072,1796.1,1795.8,0.65692995]
[1745608140616,6.31946712,1796.0,1795.8,0.65692995]
[1745608141088,5.56823876,1795.9,1795.8,0.65692995]
[1745608142726,6.08776779,1795.9,1795.8,0.65692995]
[1745608143100,0.51952903,1795.9,1795.8,0.65692995]
[1745608143298,6.08776779,1795.9,1795.8,0.65692995]
[1745608143988,0.51952903,1795.9,1795.8,0.65692995]
[1745608144841,6.11,1796.2,1795.8,0.65692995]
[1745608144988,6.11,1796.2,1796.1,0.65692995]
[1745608145188,12.19694081,1796.2,1796.1,0.65692995]
[1745608145689,12.19694081,1796.2,1795.9,1.43052995]
[1745608146041,5.56781593,1796.1,1795.7,6.24552995]
[1745608146389,12.44540061,1796.2,1795.9,0.65692995]
[1745608146746,5.56771182,1796.1,1795.9,0.65692995]
[1745608146890,6.08740971,1796.1,1795.9,0.65692995]
[1745608147325,11.67750061,1796.2,1796.0,0.7631]
[1745608147525,6.11,1796.2,1796.1,0.65692995]
[1745608148928,6.39596181,1796.5,1796.1,0.65692995]
[1745608149098,5.56656181,1796.5,1796.3,0.65692995]
[1745608149485,0.51956673,1796.4,1796.3,0.65692995]
[1745608151721,6.08625566,1796.4,1796.3,0.65692995]
[1745608152725,0.51956673,1796.4,1796.3,0.65692995]
[1745608154117,11.67466368,1797.1,1796.4,0.7997]
[1745608154433,5.56466368,1797.1,1797.0,0.65692995]
[1745608154739,6.08397894,1797.0,1796.8,0.65692995]
[1745608154910,5.56493008,1797.0,1796.8,0.65692995]
[1745608155299,5.56513996,1796.9,1796.8,0.65692995]
[1745608155645,5.56461997,1797.1,1796.8,0.65692995]
[1745608155936,6.8754,1797.7,1796.9,0.8162]
[1745608156232,5.56363007,1797.4,1797.3,0.65692995]
[1745608157616,5.56398288,1797.3,1797.1,0.65692995]
[1745608157815,5.56421099,1797.2,1797.1,0.65692995]
[1745608158113,5.56408081,1797.3,1797.1,0.65692995]
[1745608158316,0.7633,1797.4,1797.1,0.65692995]
[1745608158843,5.56390399,1797.3,1797.1,0.65692995]
[1745608159348,6.32713731,1797.4,1797.1,0.65692995]
[1745608159548,6.32644949,1797.6,1797.3,1.48882995]
[1745608159948,5.56314949,1797.6,1797.3,6.29982995]
[1745608160307,5.56329799,1797.5,1797.3,6.29982995]
[1745608160507,5.56315936,1797.6,1797.3,6.29982995]
[1745608160708,5.56284751,1797.7,1797.3,6.29982995]
[1745608160944,5.56284751,1797.7,1797.5,0.65692995]
[1745608161214,5.56297285,1797.6,1797.5,0.65692995]
[1745608162045,5.56328599,1797.5,1797.3,6.29982995]
[1745608162245,5.56297285,1797.6,1797.3,6.29982995]
[1745608162539,5.56345604,1797.5,1797.3,6.29982995]
[1745608164341,5.56359185,1797.4,1797.3,6.29982995]
[1745608164926,11.12701873,1797.5,1797.3,6.29982995]
[1745608165118,5.56349689,1797.5,1797.3,6.29982995]
[1745608165848,5.56359185,1797.4,1797.3,6.29982995]
[1745608166052,5.56349689,1797.5,1797.3,6.29982995]
[1745608166949,5.56309461,1797.6,1797.3,6.29982995]
[1745608166950,11.12630775,1797.6,1797.3,6.29982995]
[1745608167246,5.56334982,1797.5,1797.3,6.29982995]
[1745608168628,11.12631077,1797.6,1797.3,6.29982995]
[1745608169149,5.56328572,1797.5,1797.3,6.29982995]
[1745608169349,11.12679882,1797.5,1797.3,6.29982995]
[1745608169654,5.56328572,1797.5,1797.3,6.29982995]
[1745608170224,5.56359185,1797.4,1797.3,4.811]
[1745608171524,5.56473564,1797.1,1797.0,4.809]
[1745608173638,5.56473564,1797.1,1797.0,5.46592995]
[1745608179636,5.56434951,1797.2,1797.0,5.46592995]
[1745608180037,11.12879544,1797.2,1797.0,5.46592995]
[1745608180580,5.56434951,1797.2,1797.0,5.46592995]
[1745608181362,11.12880166,1797.2,1797.0,5.46592995]
[1745608181662,5.56452061,1797.1,1797.0,5.46592995]
[1745608182264,5.56434951,1797.2,1797.0,5.46592995]
[1745608182440,11.12882506,1797.2,1797.0,5.46592995]
[1745608182646,6.08367631,1797.1,1797.0,5.46592995]
[1745608183144,5.56452061,1797.1,1797.0,5.46592995]
[1745608183466,5.56452061,1797.1,1797.0,5.77730349]
[1745608184328,6.08432511,1797.1,1797.0,5.77730349]
[1745608184534,6.08432511,1797.1,1797.0,5.46592995]
[1745608185667,0.5198045,1797.1,1797.0,6.23992995]
[1745608186057,11.67378538,1797.4,1797.0,6.23992995]
[1745608186371,11.67378538,1797.4,1797.2,0.65692995]
[1745608186566,0.51977854,1797.3,1797.2,0.65692995]
[1745608191381,6.08367994,1797.3,1797.2,0.65692995]
[1745608191840,0.51977854,1797.3,1797.2,0.65692995]
[1745608192657,6.08367994,1797.3,1797.2,0.65692995]
[1745608195577,0.51977854,1797.3,1797.2,0.65692995]
[1745608195934,6.08367994,1797.3,1797.2,0.65692995]
[1745608197583,0.51977854,1797.3,1797.2,0.65692995]
[1745608198782,6.08367994,1797.3,1797.2,0.65692995]
[1745608199471,6.08367994,1797.3,1797.0,6.23992995]
[1745608199965,5.5639014,1797.3,1797.0,6.23992995]
[1745608200478,0.52030807,1797.2,1797.0,5.46592995]
[1745608200680,6.08460947,1797.2,1797.0,5.46592995]
[1745608200856,5.56452061,1797.1,1797.0,4.809]
[1745608201054,0.52030807,1797.1,1797.0,4.809]
[1745608201390,0.52030807,1797.1,1797.0,5.6418]
[1745608201586,5.56371711,1797.4,1797.0,5.6418]
[1745608201748,5.56403474,1797.3,1797.0,5.6418]
[1745608203182,11.12754865,1797.4,1797.0,5.6418]
[1745608203363,0.52030694,1797.3,1797.1,0.65692995]
[1745608203547,0.52030694,1797.3,1797.1,0.71256961]
[1745608203751,0.52030694,1797.3,1797.1,0.65692995]
[1745608204085,5.56366921,1797.4,1797.1,0.65692995]
[1745608205350,0.52028592,1797.3,1797.1,0.65692995]
[1745608206185,5.56366921,1797.4,1797.1,0.65692995]
[1745608206484,5.56311854,1797.6,1797.3,0.65692995]
[1745608207051,6.31578114,1797.7,1797.4,4.806]
[1745608207252,0.52025125,1797.5,1797.4,4.806]
[1745608207463,0.52025125,1797.5,1797.4,6.27152995]
[1745608207661,0.52025125,1797.5,1797.4,14.8351218]
[1745608207865,0.52025125,1797.8,1797.5,0.8086]
[1745608208187,0.05,1797.9,1797.7,0.65692995]
[1745608208753,5.61206615,1797.9,1797.7,0.65692995]
[1745608208968,0.05,1797.9,1797.7,1.43982995]
[1745608209161,0.05,1797.9,1797.8,4.805]
[1745608209784,5.6120446,1797.9,1797.8,4.805]
[1745608210555,0.05,1797.9,1797.8,4.805]
[1745608210778,5.6120446,1797.9,1797.8,4.805]
[1745608210967,0.05,1797.9,1797.8,4.805]
[1745608211581,5.6120446,1797.9,1797.8,4.805]
[1745608212962,6.3678446,1797.9,1797.8,4.805]
[1745608213298,6.3678446,1797.9,1797.4,4.805]
[1745608213299,5.56335144,1797.5,1797.4,4.805]
[1745608213458,5.56335144,1797.5,1797.1,1.46692995]
[1745608213459,5.56335144,1797.5,1797.2,4.805]
[1745608214301,5.56335144,1797.5,1797.3,0.65692995]
[1745608215194,6.31890844,1797.6,1797.3,0.65692995]
[1745608215363,6.3769862,1797.8,1797.5,0.65692995]
[1745608215564,5.5628911,1797.7,1797.5,0.65692995]
[1745608216097,5.56297285,1797.6,1797.4,0.752]
[1745608216593,5.56297285,1797.6,1797.3,0.65692995]
[1745608216796,5.56297285,1797.6,1797.1,0.65692995]
[1745608216797,5.56375182,1797.4,1797.1,0.65692995]
[1745608217100,5.56421099,1797.2,1797.0,0.7801]
[1745608217266,5.56421099,1797.2,1797.1,4.805]
[1745608218277,5.56483027,1797.0,1796.9,0.65692995]
[1745608218494,5.56453117,1797.1,1796.9,5.46192995]
[1745608218495,5.56474046,1797.1,1796.9,5.46192995]
[1745608219300,11.12949527,1797.1,1796.9,5.46192995]
[1745608219507,5.56483027,1797.0,1796.7,1.47542995]
[1745608219710,5.56483027,1797.0,1796.9,4.805]
[1745608221899,5.56567061,1796.8,1796.7,4.805]
[1745608222101,5.56575944,1796.7,1796.6,17.34392995]
[1745608222304,5.56575944,1796.7,1796.6,22.14892995]
[1745608222490,5.5656577,1796.8,1796.6,22.14892995]
[1745608223918,5.56494726,1797.0,1796.6,22.14892995]
[1745608224217,5.56494726,1797.0,1796.8,0.65692995]
[1745608224572,5.56546152,1796.8,1796.6,22.14892995]
[1745608225984,5.56547144,1796.8,1796.6,22.14892995]
[1745608227514,11.13115528,1796.8,1796.6,22.14892995]